bitfinex-derivatives/quotes_SOLF0:USTF0_20251222
["timestamp","ask_amount","ask_price","bid_price","bid_amount"]
[1766368585423,0.0523635,126.17,126.14,3.27733581]
[1766368586530,0.0023635,126.17,126.14,10.41463581]
[1766368588227,0.0023635,126.17,126.15,3.44]
[1766368588629,1.48927302,126.2,126.15,3.44]
[1766368588828,1.48927302,126.22,126.16,3.44]
[1766368589532,0.02416903,126.2,126.18,0.05020771]
[1766368596539,0.02416903,126.2,126.14,50.18]
[1766368596933,0.02416903,126.2,126.14,3.36]
[1766368597537,0.02416903,126.2,126.16,0.05312809]
[1766368600939,0.00416903,126.2,126.16,3.41312809]
[1766368602644,0.00416903,126.2,126.17,3.36]
[1766368608648,2.32755614,126.2,126.13,3.36]
[1766368609245,9.46185614,126.2,126.13,10.4979]
[1766368609551,9.46185614,126.2,126.15,0.0547359]
[1766368610451,7.1346,126.19,126.15,0.0547359]
[1766368612055,2.32755614,126.2,126.15,0.0547359]
[1766368613444,0.00416903,126.2,126.15,3.4147359]
[1766368614853,0.00416903,126.2,126.16,3.36]
[1766368616353,9.79942541,126.29,126.18,3.36]
[1766368616654,7.13,126.28,126.21,3.36]
[1766368616842,7.13,126.28,126.18,3.36]
[1766368616843,2.32338711,126.26,126.18,3.36]
[1766368617143,9.45408711,126.26,126.18,3.36]
[1766368617343,0.05199683,126.23,126.21,0.05282896]
[1766368619460,0.05199683,126.23,126.16,3.36]
[1766368619661,2.32338711,126.22,126.13,3.36]
[1766368620350,110.9335,126.25,126.16,3.4197453]
[1766368620351,7.1316,126.25,126.16,3.4197453]
[1766368620555,9.45498711,126.25,126.16,3.36]
[1766368621556,0.05728104,126.22,126.19,0.06095914]
[1766368623356,0.05728104,126.22,126.15,3.36]
[1766368623665,2.32338711,126.23,126.15,3.36]
[1766368624347,0.05967528,126.2,126.18,0.05627851]
[1766368624951,0.05967528,126.2,126.15,3.36]
[1766368625957,0.05967528,126.2,126.16,0.05097997]
[1766368627156,0.05967528,126.2,126.15,3.36]
[1766368627157,0.05967528,126.2,126.13,3.18]
[1766368627352,2.32338711,126.19,126.13,3.18]
[1766368627751,9.45808711,126.19,126.11,3.18]
[1766368628051,2.32338711,126.19,126.11,3.18]
[1766368628246,2.32338711,126.19,126.14,0.05291993]
[1766368628247,0.06056089,126.16,126.14,0.05291993]
[1766368632957,0.06056089,126.16,126.11,3.18]
[1766368633356,0.06056089,126.16,126.11,10.319]
[1766368633552,0.06056089,126.16,126.12,3.18]
[1766368633957,0.06056089,126.16,126.13,0.06023877]
[1766368647059,7.19686089,126.16,126.11,3.18]
[1766368647268,0.06056089,126.16,126.11,3.18]
[1766368648062,0.06056089,126.16,126.12,0.05570495]
[1766368648269,7.19696089,126.16,126.12,0.05570495]
[1766368649875,7.19696089,126.16,126.08,3.27]
[1766368649876,2.383948,126.16,126.08,3.27]
[1766368650065,2.32338711,126.16,126.08,3.27]
[1766368650267,113.31928711,126.18,126.08,10.4106]
[1766368650466,2.32338711,126.18,126.09,3.27]
[1766368650675,0.05307766,126.15,126.12,0.05595729]
[1766368654377,1.48824327,126.14,126.09,3.27]
[1766368655480,1.48824327,126.14,126.06,129.0936]
[1766368655481,1.48824327,126.14,126.1,3.37568074]
[1766368655677,0.05150269,126.13,126.1,3.37568074]
[1766368657182,0.00150269,126.13,126.1,3.37568074]
[1766368664997,0.00150269,126.13,126.1,0.05568074]
[1766368668395,0.00150269,126.13,126.1,3.37568074]
[1766368677110,1.48974596,126.13,126.05,7.142]
[1766368677305,1.48824327,126.13,126.05,7.142]
[1766368677501,1.48824327,126.13,126.04,46.84]
[1766368678112,0.00059529,126.1,126.07,0.06087993]
[1766368678996,0.00059529,126.1,126.08,3.32]
[1766368681606,0.00059529,126.1,126.07,3.38087993]
[1766368686507,1.48824327,126.15,126.07,3.38087993]
[1766368686708,7.33834741,126.17,126.07,3.32]
[1766368686910,1.48824327,126.16,126.07,3.32]
[1766368687509,0.05313257,126.13,126.1,0.06009735]
[1766368688810,1.48824327,126.12,126.07,3.21]
[1766368689817,1.48824327,126.12,126.08,0.05765952]
[1766368690318,0.05313257,126.13,126.08,0.05765952]
[1766368690618,1.54137584,126.13,126.08,0.05765952]
[1766368691009,1.54137584,126.13,126.05,7.142]
[1766368691010,1.48824327,126.11,126.05,3.21]
[1766368691202,7.34779385,126.13,126.05,3.21]
[1766368691508,1.48824327,126.11,126.05,3.21]
[1766368692213,0.05885912,126.09,126.07,0.05405879]
[1766368693226,61.32559385,126.14,126.07,3.26405879]
[1766368693406,1.48824327,126.13,126.07,3.26405879]
[1766368693816,8.62634327,126.13,126.07,3.26405879]
[1766368694312,0.05366858,126.11,126.07,3.26405879]
[1766368696919,0.00366858,126.11,126.07,3.26405879]
[1766368697320,0.00366858,126.11,126.07,0.05405879]
[1766368699523,0.00366858,126.11,126.07,3.26405879]
[1766368702221,0.00366858,126.11,126.08,3.21]
[1766368703316,1.48824327,126.16,126.09,3.21]
[1766368703723,55.67603712,126.18,126.09,3.21]
[1766368703931,55.67603712,126.18,126.11,3.21]
[1766368704324,0.05979215,126.16,126.13,0.05157508]
[1766368704529,1.54803542,126.16,126.09,3.21]
[1766368704728,1.48824327,126.16,126.09,3.21]
[1766368705730,0.05934315,126.14,126.11,0.05321572]
[1766368707732,0.05934315,126.14,126.11,3.33321572]
[1766368711637,0.05934315,126.14,126.11,0.05321572]
[1766368715731,0.05934315,126.14,126.11,3.37321572]
[1766368715931,7.1362,126.17,126.11,3.37321572]
[1766368716342,7.1363,126.16,126.11,3.37321572]
[1766368716841,0.05231514,126.15,126.11,3.37321572]
[1766368721154,0.05231514,126.15,126.11,0.05321572]
[1766368722660,7.18921514,126.15,126.11,0.05321572]
[1766368724253,7.18921514,126.15,126.09,3.32]
[1766368724451,2.32511402,126.14,126.09,3.32]
[1766368724654,7.18921514,126.15,126.09,3.32]
[1766368725261,7.18921514,126.15,126.11,0.05758661]
[1766368726755,7.1375,126.14,126.11,0.05758661]
[1766368727059,9.46261402,126.14,126.09,3.32]
[1766368727953,9.46261402,126.14,126.1,0.0589216]
[1766368728151,7.1381,126.13,126.07,3.32]
[1766368729354,0.05768705,126.11,126.09,0.05633929]
[1766368729859,0.05768705,126.11,126.07,3.32]
[1766368730857,0.05768705,126.11,126.08,0.05998117]
[1766368734063,0.05768705,126.11,126.07,3.32]
[1766368734853,0.05768705,126.11,126.08,0.05168353]
[1766368735058,0.05768705,126.11,126.07,3.32]
[1766368735252,2.32511402,126.1,126.02,18.0]
[1766368735453,2.32511402,126.1,126.01,18.0]
[1766368736168,2.32511402,126.1,126.04,0.02245989]
[1766368737269,0.05892584,126.08,126.05,3.32]
[1766368741366,9.46481402,126.1,126.05,3.32]
[1766368742462,0.05568855,126.09,126.05,3.32]
[1766368742968,9.46391402,126.12,126.05,3.32]
[1766368744169,0.05886769,126.1,126.07,0.05942807]
[1766368744673,0.05886769,126.1,126.07,3.37942807]
[1766368751576,2.32511402,126.12,126.07,3.37942807]
[1766368752474,46.84,126.13,126.07,3.37942807]
[1766368752664,0.05573164,126.11,126.07,3.37942807]
[1766368766190,0.05573164,126.11,126.07,0.05942807]
[1766368767488,0.05573164,126.11,126.07,3.47942807]
[1766368767689,7.19483164,126.11,126.07,3.47942807]
[1766368768891,0.05573164,126.11,126.07,3.47942807]
[1766368775987,1.54511726,126.11,126.07,3.47942807]
[1766368776798,1.48938562,126.1,126.07,3.47942807]
[1766368777501,0.05573164,126.11,126.07,3.47942807]
[1766368777804,1.54511726,126.11,126.07,3.47942807]
[1766368778503,1.48938562,126.12,126.07,3.47942807]
[1766368778705,18.68,126.13,126.07,3.47942807]
[1766368780203,15.16,126.13,126.07,3.47942807]
[1766368780505,0.00036875,126.11,126.07,3.47942807]
[1766368780692,0.00036875,126.11,126.07,10.62072807]
[1766368780898,0.00036875,126.11,126.08,3.48]
[1766368782713,0.00036875,126.11,126.08,10.6206]
[1766368783215,0.00036875,126.11,126.09,3.48]
[1766368784112,0.00036875,126.11,126.07,3.53942807]
[1766368784307,1.48975437,126.11,126.07,3.53942807]
[1766368784811,1.48938562,126.13,126.07,3.53942807]
[1766368785714,0.00452206,126.11,126.08,3.48]
[1766368794012,4.95390768,126.11,126.07,0.05942807]
[1766368795225,3.46,126.1,126.07,0.05942807]
[1766368795415,1.48938562,126.07,126.02,50.34]
[1766368795907,1.48938562,126.07,126.02,3.48]
[1766368796317,0.05006512,126.06,126.03,0.06052711]
[1766368797115,10.5999,126.1,126.03,3.54052711]
[1766368797317,1.48938562,126.09,126.03,3.54052711]
[1766368798118,0.05831844,126.07,126.03,3.54052711]
[1766368802025,8.83789718,126.12,126.03,3.54052711]
[1766368802231,3.46,126.12,126.03,3.48]
[1766368802733,1.48938562,126.11,126.05,2.84]
[1766368802931,4.94938562,126.09,126.01,2.84]
[1766368803227,0.05272765,126.06,126.04,0.05143164]
[1766368803431,0.00272765,126.06,126.04,0.05143164]
[1766368805031,0.00272765,126.06,126.04,2.84143164]
[1766368806731,1.49211327,126.06,126.04,0.05143164]
[1766368807034,1.49211327,126.06,126.01,2.79]
[1766368807435,0.00272765,126.06,126.01,2.79]
[1766368807835,0.00272765,126.06,126.02,0.05530868]
[1766368810025,1.48938562,126.05,126.02,0.05530868]
[1766368811435,8.63198562,126.05,126.02,0.05530868]
[1766368811823,1.48938562,126.03,125.97,2.79]
[1766368812436,4.77938562,126.03,125.97,2.79]
[1766368812829,0.05577431,126.01,125.99,0.05254526]
[1766368813231,4.83515993,126.01,125.95,2.79]
[1766368813635,1.48938562,125.99,125.95,2.79]
[1766368813841,11.92538562,125.99,125.92,2.84]
[1766368814229,0.05283396,125.97,125.92,2.84]
[1766368814435,0.00283396,125.97,125.94,2.89411229]
[1766368815239,3.29,126.05,125.95,2.79]
[1766368815439,1.48938562,126.08,126.0,2.79]
[1766368815645,3.29,126.09,126.0,2.79]
[1766368816233,0.06072338,126.06,126.03,0.05321639]
[1766368817230,4.840109,126.06,126.03,0.00321639]
[1766368817547,4.77938562,126.04,125.98,2.84]
[1766368817733,3.29,126.04,125.98,2.84]
[1766368817934,1.48938562,126.03,125.98,2.84]
[1766368818437,0.00076986,126.02,125.99,0.05200217]
[1766368818636,0.00076986,126.02,125.99,2.79]
[1766368819442,0.00076986,126.02,125.99,2.84577146]
[1766368819641,4.77938562,126.07,125.99,2.84577146]
[1766368819642,1.48938562,126.07,126.0,2.79]
[1766368820341,1.48938562,126.07,126.0,9.935]
[1766368820731,46.86,126.08,126.02,2.84593088]
[1766368820930,10.4306,126.09,126.02,2.84593088]
[1766368820931,4.77938562,126.09,126.02,2.84593088]
[1766368822042,0.05474605,126.07,126.02,2.84593088]
[1766368822548,0.05474605,126.07,126.02,9.98993088]
[1766368823150,0.05474605,126.07,126.03,2.74]
[1766368826155,3.34474605,126.07,126.02,0.05593088]
[1766368826452,1.48938562,126.06,126.02,0.05593088]
[1766368826949,4.83413167,126.07,126.02,0.05593088]
[1766368827145,3.34474605,126.07,126.02,0.05593088]
[1766368827753,0.05474605,126.07,126.02,0.05593088]
[1766368827952,0.05474605,126.07,126.02,2.79593088]
[1766368829858,0.05474605,126.07,126.03,9.8834]
[1766368831453,0.00474605,126.07,126.04,9.8829]
[1766368832545,0.00474605,126.07,126.02,2.74593088]
[1766368833251,1.48938562,126.06,126.02,0.05593088]
[1766368834351,3.33,126.05,125.99,2.75]
[1766368835457,0.0535183,126.03,126.01,0.05012734]
[1766368841962,3.3935183,126.03,125.96,2.75]
[1766368842158,3.34,126.03,125.96,2.75]
[1766368842961,0.05442481,126.01,125.98,0.05283944]
[1766368843962,3.39442481,126.01,125.98,0.00283944]
[1766368845663,3.39442481,126.01,125.94,2.85]
[1766368845979,3.34,126.0,125.92,2.85]
[1766368846265,3.34,125.98,125.91,2.85]
[1766368846660,0.05641302,125.96,125.93,0.05349086]
[1766368848477,3.39641302,125.96,125.89,2.85]
[1766368848658,2.32904948,125.97,125.87,2.9]
[1766368848659,3.34,125.94,125.87,2.9]
[1766368849578,0.05861267,125.92,125.89,0.05080072]
[1766368855891,3.34,126.0,125.91,2.84]
[1766368856481,3.34,125.98,125.91,2.84]
[1766368856682,3.34,125.98,125.9,46.9]
[1766368856892,0.05990774,125.95,125.93,0.05052341]
[1766368857184,3.34,125.98,125.93,0.05052341]
[1766368857988,0.0576244,125.97,125.93,0.05052341]
[1766368858187,3.3976244,125.97,125.93,0.05052341]
[1766368860294,3.3976244,125.97,125.93,0.00052341]
[1766368862692,3.34,126.01,125.93,2.83052341]
[1766368862894,113.43084948,126.06,125.93,2.83052341]
[1766368862895,3.34,126.03,125.94,2.77]
[1766368863399,3.34,126.03,125.97,2.77]
[1766368863790,0.05903807,126.01,125.99,0.06063769]
[1766368864194,3.34,126.05,125.99,0.06063769]
[1766368864396,3.34,126.05,125.99,2.77063769]
[1766368864991,3.34,126.05,125.99,0.06063769]
[1766368865191,0.06057709,126.03,125.99,0.06063769]
[1766368867093,0.00057709,126.03,126.0,2.71]
[1766368867499,3.40057709,126.03,125.99,0.06063769]
[1766368867804,3.40057709,126.03,125.99,0.00063769]
[1766368868490,0.00057709,126.03,125.99,0.00063769]
[1766368870907,0.00057709,126.03,126.0,7.1449]
[1766368871105,0.00057709,126.03,126.0,9.8549]
[1766368873210,0.00057709,126.03,126.0,2.71]
[1766368874602,0.00057709,126.03,125.99,0.00063769]
[1766368877707,3.40057709,126.03,125.99,0.00063769]
[1766368878712,3.4,126.02,125.99,0.00063769]
[1766368880405,3.4,126.01,125.99,0.00063769]
[1766368880710,114.5438,126.01,125.92,2.71]
[1766368880911,3.4,126.0,125.92,2.71]
[1766368881117,3.4,125.98,125.9,7.1507]
[1766368881408,3.4,125.98,125.9,9.8607]
[1766368881615,0.05734441,125.95,125.93,0.05660333]
[1766368882610,3.4,125.98,125.93,0.05660333]
[1766368883212,10.5456,126.0,125.93,0.05660333]
[1766368883612,0.0586711,125.98,125.93,2.70660333]
[1766368884318,10.5445,126.02,125.93,2.70660333]
[1766368884510,10.5445,126.02,125.93,2.65]
[1766368885117,3.4,126.01,125.94,2.59]
[1766368885317,0.05454216,125.99,125.96,0.05646554]
[1766368887122,3.47454216,125.99,125.91,2.59]
[1766368887319,3.42,125.99,125.91,2.59]
[1766368888416,3.42,125.99,125.94,0.05690852]
[1766368888417,0.05270906,125.96,125.94,0.05690852]
[1766368891823,0.05270906,125.96,125.91,2.59]
[1766368892920,0.05270906,125.96,125.92,0.05233976]
[1766368894128,0.05270906,125.96,125.92,2.76233976]
[1766368896320,0.05270906,125.96,125.92,0.05233976]
[1766368897320,3.40270906,125.96,125.92,0.05233976]
[1766368897622,0.05270906,125.96,125.92,0.05233976]
[1766368898225,3.40270906,125.96,125.92,0.05233976]
[1766368899221,3.40270906,125.96,125.92,0.00233976]
[1766368899423,3.40270906,125.96,125.87,2.76]
[1766368899622,3.35,125.96,125.87,2.76]
[1766368899819,10.4962,125.99,125.9,2.76]
[1766368900129,3.35,125.99,125.91,2.76]
[1766368900432,3.35,126.01,125.94,2.81844371]
[1766368900632,3.35,126.01,125.94,2.76]
[1766368901428,0.05304976,125.99,125.96,0.05104698]
[1766368902131,3.40304976,125.99,125.96,0.00104698]
[1766368902723,10.54914976,125.99,125.96,0.00104698]
[1766368902923,3.35,125.98,125.9,49.71]
[1766368903434,3.35,125.97,125.9,2.81]
[1766368903822,0.05101759,125.95,125.92,0.0520315]
[1766368904640,0.05101759,125.95,125.86,111.268]
[1766368904641,3.40101759,125.95,125.87,2.81]
[1766368904824,3.35,125.95,125.87,2.81]
[1766368905225,10.4974,125.97,125.89,2.86]
[1766368905731,0.05842481,125.94,125.92,0.05744801]
[1766368906529,3.35,125.98,125.92,0.05744801]
[1766368907028,10.4966,125.98,125.92,0.05744801]
[1766368907331,0.05667631,125.96,125.92,0.05744801]
[1766368908228,3.40667631,125.96,125.92,0.05744801]
[1766368908932,0.05667631,125.96,125.92,0.05744801]
[1766368911435,0.05667631,125.96,125.92,2.91744801]
[1766368911638,3.35,126.01,125.92,2.91744801]
[1766368911834,3.35,126.01,125.93,2.8]
[1766368912532,10.495,126.01,125.96,0.05210288]
[1766368912738,0.06006443,125.98,125.96,0.05210288]
[1766368913841,0.06006443,125.98,125.96,0.00210288]
[1766368916037,3.41006443,125.98,125.9,2.85]
[1766368916243,3.35,125.97,125.9,2.85]
[1766368917032,0.05260602,125.95,125.92,0.05691004]
[1766368919738,3.35,126.0,125.92,2.90691004]
[1766368919942,3.35,126.0,125.92,2.85]
[1766368920737,3.35,126.0,125.95,0.05170735]
[1766368920944,0.053699,125.97,125.95,0.05170735]
[1766368922036,3.35,126.02,125.95,0.05170735]
[1766368922241,3.35,126.02,125.95,2.8]
[1766368922938,3.35,126.04,125.98,2.8]
[1766368923941,3.35,126.06,125.98,2.8]
[1766368924136,0.05395377,126.03,126.01,0.05359669]
[1766368924535,3.40395377,126.03,125.95,9.9981]
[1766368924843,3.35,126.03,125.96,2.85]
[1766368925635,0.0598381,126.01,125.98,0.05757499]
[1766368926231,3.29,126.05,125.98,0.05757499]
[1766368927338,0.05066005,126.03,125.98,0.05757499]
[1766368932357,3.34066005,126.03,125.95,7.1477]
[1766368932550,3.34066005,126.03,125.94,2.85]
[1766368932551,3.29,126.02,125.94,2.85]
[1766368932756,3.29,126.0,125.94,2.85]
[1766368933055,3.29,126.0,125.92,2.91]
[1766368933354,0.05056998,125.97,125.95,0.05078705]
[1766368934258,0.05056998,125.97,125.91,7.1501]
[1766368934451,3.34056998,125.97,125.9,2.96]
[1766368935349,3.34056998,125.97,125.92,0.05448492]
[1766368935548,10.48776998,125.97,125.92,0.05448492]
[1766368935747,3.29,125.96,125.92,0.05448492]
[1766368935944,3.29,125.96,125.87,2.96]
[1766368936158,3.29,125.94,125.87,2.96]
[1766368936955,3.34338917,125.92,125.89,0.00492282]
[1766368937657,3.34338917,125.92,125.83,10.1647]
[1766368937856,3.29,125.92,125.84,3.01]
[1766368938257,3.29,125.92,125.82,111.3065]
[1766368938258,3.29,125.9,125.82,27.6783]
[1766368938467,3.9965841,125.91,125.78,3.49]
[1766368938468,115.2525841,125.88,125.78,3.49]
[1766368938660,111.32025131,125.87,125.78,3.49]
[1766368938954,7.153,125.87,125.78,3.49]
[1766368939153,3.9965841,125.88,125.78,3.49]
[1766368939361,50.8965841,125.88,125.79,3.49]
[1766368939664,0.05414027,125.85,125.82,0.05091523]
[1766368940255,0.05414027,125.85,125.82,0.00091523]
[1766368940451,0.05414027,125.85,125.74,4.84824071]
[1766368940452,111.3133,125.82,125.74,3.46492791]
[1766368940651,46.9,125.81,125.74,3.46492791]
[1766368940860,3.9965841,125.82,125.74,0.00492791]
[1766368941054,50.8965841,125.82,125.74,3.49492791]
[1766368941257,3.9965841,125.85,125.74,3.49492791]
[1766368941456,0.05607512,125.81,125.78,0.05044159]
[1766368941759,0.05607512,125.81,125.78,0.05668153]
[1766368941954,115.2592841,125.88,125.78,0.05668153]
[1766368942162,46.9,125.86,125.76,3.49]
[1766368942356,46.9,125.86,125.77,3.49]
[1766368942559,46.9,125.86,125.74,0.00492791]
[1766368942560,115.2901841,125.84,125.74,0.00492791]
[1766368942863,111.3027,125.83,125.74,0.00492791]
[1766368943164,0.05343889,125.8,125.74,0.00492791]
[1766368944162,0.05343889,125.8,125.76,0.05636975]
[1766368944867,0.05343889,125.8,125.74,0.00492791]
[1766368945364,111.38513889,125.8,125.74,0.00492791]
[1766368945853,3.9965841,125.77,125.69,3.49]
[1766368946057,46.92,125.77,125.69,3.49]
[1766368946265,46.92,125.77,125.71,3.49]
[1766368946667,46.92,125.8,125.71,3.49]
[1766368946864,0.0576174,125.77,125.74,0.05352837]
[1766368948261,0.0576174,125.77,125.7,111.4073]
[1766368948262,24.0,125.76,125.68,114.9225]
[1766368948455,24.0,125.76,125.68,3.49]
[1766368948654,3.9965841,125.77,125.68,3.49]
[1766368949169,0.05841585,125.74,125.71,0.05459822]
[1766368949461,0.05841585,125.74,125.65,3.46]
[1766368949769,115.3553841,125.77,125.65,3.46]
[1766368949969,115.3776841,125.74,125.65,3.46]
[1766368950164,162.3176841,125.74,125.65,3.46]
[1766368950355,111.3894,125.73,125.65,3.46]
[1766368950557,0.05457748,125.7,125.68,0.0599746]
[1766368951061,46.94,125.74,125.68,0.0599746]
[1766368951265,7.1587,125.77,125.68,0.0599746]
[1766368951468,46.94,125.76,125.67,3.46]
[1766368951968,7.1597,125.75,125.67,3.46]
[1766368952166,0.05523714,125.73,125.7,0.05026059]
[1766368952366,0.05523714,125.73,125.64,114.9277]
[1766368952573,3.9965841,125.75,125.65,3.46]
[1766368952773,46.94,125.76,125.67,3.46]
[1766368953165,46.94,125.76,125.69,3.46]
[1766368953368,7.1568,125.8,125.71,3.52113357]
[1766368953560,7.1568,125.8,125.7,7.1619]
[1766368953561,111.3271,125.8,125.68,3.46]
[1766368953765,3.9965841,125.85,125.74,3.46]
[1766368953966,115.2832841,125.85,125.75,3.46]
[1766368954166,111.3013,125.83,125.73,3.46]
[1766368954373,0.0573815,125.79,125.77,0.05075454]
[1766368954772,0.0573815,125.79,125.73,3.46]
[1766368955678,0.0573815,125.79,125.75,0.05660259]
[1766368958879,46.96,125.81,125.75,3.40660259]
[1766368959080,46.96,125.81,125.75,0.05660259]
[1766368959474,54.1164,125.81,125.75,0.05660259]
[1766368960080,0.05340927,125.79,125.75,0.05660259]
[1766368961878,111.3447,125.78,125.68,3.35]
[1766368962182,111.3447,125.78,125.65,3.35]
[1766368962183,111.3624,125.76,125.65,3.35]
[1766368962387,46.96,125.75,125.65,3.35]
[1766368962685,46.96,125.75,125.67,3.35]
[1766368963082,0.06046283,125.72,125.7,0.05806642]
[1766368963375,46.96,125.75,125.7,0.05806642]
[1766368964489,0.05901743,125.74,125.7,0.05806642]
[1766368965487,6.51395843,125.8,125.7,3.40806642]
[1766368965683,46.96,125.79,125.7,3.35]
[1766368966285,46.96,125.79,125.71,10.5116]
[1766368966478,0.05003329,125.76,125.74,0.06073031]
[1766368972087,1.65003329,125.76,125.66,3.35]
[1766368972286,117.87015843,125.77,125.66,3.35]
[1766368972787,7.1597,125.75,125.67,10.5139]
[1766368973188,0.05113022,125.72,125.7,0.06086075]
[1766368973378,13.67255843,125.77,125.7,0.06086075]
[1766368973582,6.51395843,125.77,125.7,0.06086075]
[1766368973776,111.3385,125.79,125.7,0.06086075]
[1766368973983,158.3185,125.79,125.69,3.35]
[1766368974289,111.3534,125.77,125.66,3.35]
[1766368974476,0.05273625,125.73,125.7,0.05571049]
[1766368976581,7.1584,125.78,125.7,10.56791049]
[1766368976781,111.3366,125.79,125.7,3.35]
[1766368977178,7.1585,125.77,125.7,3.35]
[1766368977697,0.05172878,125.75,125.72,0.05729944]
[1766368979886,46.98,125.8,125.73,3.35]
[1766368980599,118.53298096,125.86,125.74,3.35]
[1766368980781,111.3021,125.83,125.72,3.35]
[1766368980988,0.06109431,125.79,125.76,0.0537176]
[1766368982388,6.51395843,125.86,125.76,3.4037176]
[1766368982702,46.98,125.86,125.76,3.35]
[1766368982898,158.2563,125.86,125.76,10.5088]
[1766368983199,46.98,125.86,125.77,3.35]
[1766368983501,0.05780475,125.82,125.8,0.05335349]
[1766368983684,0.05780475,125.82,125.73,3.35]
[1766368983886,111.2944,125.84,125.73,3.35]
[1766368984296,111.3095,125.82,125.74,3.35]
[1766368984594,117.84125843,125.8,125.7,3.35]
[1766368985098,0.05524399,125.76,125.74,0.00062017]
[1766368985393,0.05524399,125.76,125.7,3.35]
[1766368986299,0.05524399,125.76,125.72,0.05284199]
[1766368987298,0.05524399,125.76,125.67,3.3]
[1766368987497,111.3559,125.77,125.67,3.3]
[1766368987698,46.98,125.76,125.67,3.3]
[1766368988298,0.05974781,125.73,125.7,0.05016162]
[1766368991814,111.45174781,125.73,125.64,3.3]
[1766368992000,111.4081,125.71,125.64,3.3]
[1766368992195,7.1631,125.69,125.61,3.3]
[1766368992512,46.98,125.71,125.61,3.3]
[1766368992699,46.98,125.71,125.65,0.05403493]
[1766368993011,7.1609,125.73,125.65,3.35403493]
[1766368993205,7.1609,125.73,125.65,3.3]
[1766368993803,0.05469923,125.7,125.68,0.05123135]
[1766368994810,0.05469923,125.7,125.62,3.3]
[1766368994999,111.3918,125.73,125.62,3.3]
[1766368995308,111.3918,125.73,125.61,46.98]
[1766368995309,111.3918,125.73,125.64,3.3]
[1766368995810,111.3821,125.74,125.64,3.3]
[1766368996108,46.98,125.74,125.67,0.05620477]
[1766368996307,46.98,125.74,125.67,3.35620477]
[1766368996612,46.98,125.74,125.68,3.3]
[1766368997203,46.98,125.74,125.7,0.05029726]
[1766368997815,111.3434,125.79,125.7,0.05029726]
[1766368998011,46.98,125.78,125.68,3.3]
[1766368998212,0.05639709,125.74,125.72,0.05819392]
[1766368999014,46.98,125.78,125.72,0.05819392]
[1766368999403,46.98,125.78,125.72,3.35819392]
[1766369000111,0.05719923,125.76,125.72,3.35819392]
[1766369000315,46.98,125.78,125.72,3.35819392]
[1766369000628,6.51395843,125.83,125.72,114.75319392]
[1766369000916,46.98,125.82,125.74,3.3]
[1766369001309,46.98,125.82,125.77,0.05732126]
[1766369001310,0.0544622,125.79,125.77,0.05732126]
[1766369002306,0.0044622,125.79,125.77,0.05732126]
[1766369002508,0.0044622,125.79,125.77,3.35732126]
[1766369004111,0.0044622,125.79,125.78,3.3]
[1766369004625,0.0044622,125.79,125.78,50.28]
[1766369005107,0.0044622,125.79,125.78,3.3]
[1766369006712,0.0044622,125.79,125.77,0.05732126]
[1766369008013,0.0044622,125.79,125.72,46.98]
[1766369008215,0.0044622,125.79,125.71,50.29]
[1766369008523,111.3205,125.81,125.71,50.29]
[1766369008821,7.1577,125.79,125.71,50.29]
[1766369009022,0.05255864,125.76,125.74,0.05249032]
[1766369009413,0.05255864,125.76,125.74,0.00249032]
[1766369010524,46.96,125.81,125.74,0.00249032]
[1766369011423,0.05873282,125.79,125.74,3.31249032]
[1766369012325,7.1547,125.84,125.75,3.31]
[1766369012722,111.2914,125.84,125.75,3.31]
[1766369012923,7.156,125.82,125.75,3.31]
[1766369013117,7.156,125.82,125.72,57.4512]
[1766369013323,0.05380409,125.78,125.76,0.05102892]
[1766369013528,117.80175843,125.85,125.76,3.36102892]
[1766369013714,117.80175843,125.85,125.76,3.31]
[1766369014514,0.05572022,125.82,125.79,0.05526122]
[1766369017122,0.05572022,125.82,125.76,3.31]